fUST/lending_fUST_20240805
["ID","MTS","AMOUNT","RATE_DAILY","PERIOD"]
[334135824,1722791447525,-500.0,0.00013698,2]
[334135826,1722791447536,-500.0,0.00013698,2]
[334135827,1722791447642,-500.0,0.00013698,2]
[334135828,1722791447652,-586.391351,0.00013699,2]
[334135829,1722791447662,-151.0,0.00013699,2]
[334135830,1722791447671,-3000.0,0.00013699,2]
[334135831,1722791447682,-500.0,0.00013699,2]
[334135832,1722791447693,-500.0,0.00013699,2]
[334135833,1722791447703,-500.0,0.00013699,2]
[334135834,1722791447714,-500.0,0.00013699,2]
[334135835,1722791447724,-500.0,0.00013699,2]
[334135836,1722791447735,-500.0,0.00013699,2]
[334135837,1722791447744,-203.57142102,0.00013699,2]
[334135838,1722791447754,-500.0,0.00013699,2]
[334135839,1722791447766,-500.0,0.00013699,2]
[334135840,1722791447776,-500.0,0.00013699,2]
[334135841,1722791447787,-290.48957307,0.00013699,2]
[334135842,1722791447796,-447.023371,0.00013699,2]
[334135843,1722791447806,-150.112233,0.000137,2]
[334135844,1722791447816,-150.112233,0.000137,2]
[334135845,1722791447826,-859.5766501,0.000138,2]
[334135846,1722791447835,-153.06260706,0.0001387,2]
[334135847,1722791447845,-150.112233,0.000139,2]
[334135848,1722791447854,-150.112233,0.000139,2]
[334135850,1722791447865,-2136.19,0.00013957,2]
[334135852,1722791447875,-685.22,0.0001396,2]
[334135854,1722791447885,-614.62448,0.00013961,2]
[334135856,1722791447895,-614.62448,0.00013961,2]
[334135858,1722791447904,-151.0,0.00013961,2]
[334135860,1722791447915,-151.0,0.00013961,2]
[334135862,1722791447926,-151.0,0.00013961,2]
[334135864,1722791447935,-2136.19,0.00013961,2]
[334135866,1722791447946,-2136.19,0.00013961,2]
[334135868,1722791447957,-151.0,0.00013962,2]
[334135870,1722791447970,-156.685041,0.00013962,2]
[334135872,1722791447980,-151.0,0.00013962,2]
[334135874,1722791447990,-316.175038,0.00013971,2]
[334135876,1722791448000,-316.175038,0.00013971,2]
[334135878,1722791448011,-2136.19,0.00013971,2]
[334135880,1722791448021,-2136.19,0.00013971,2]
[334135882,1722791448031,-2136.19,0.00013971,2]
[334135884,1722791448041,-231.755851,0.00013971,2]
[334135885,1722791448051,-231.755851,0.00013971,2]
[334135888,1722791448061,-207.040773,0.00013971,2]
[334135889,1722791448072,-207.040773,0.00013971,2]
[334135891,1722791448082,-216.342065,0.00013971,2]
[334135893,1722791448092,-216.342065,0.00013971,2]
[334135895,1722791448103,-685.22,0.00013971,2]
[334135897,1722791448113,-685.22,0.00013971,2]
[334135899,1722791448122,-685.22,0.00013971,2]
[334135901,1722791448132,-685.22,0.00013971,2]
[334135903,1722791448143,-685.22,0.00013971,2]
[334135905,1722791448153,-685.22,0.00013971,2]
[334135907,1722791448163,-685.25508077,0.00013971,2]
[334135909,1722791448173,-500.0,0.00013972,2]
[334135911,1722791448182,-500.0,0.00013972,2]
[334135913,1722791448193,-500.0,0.00013972,2]
[334135915,1722791448203,-151.0,0.00013972,2]
[334135917,1722791448213,-151.0,0.00013972,2]
[334135919,1722791448223,-502.21061574,0.00013972,2]
[334135920,1722791448233,-500.0,0.00013972,2]
[334135922,1722791448242,-500.0,0.00013972,2]
[334135924,1722791448252,-714.51,0.00013972,2]
[334135926,1722791448262,-512.97098069,0.00013972,2]
[334135928,1722791448273,-500.0,0.00013972,2]
[334135930,1722791448283,-567.33,0.00013972,2]
[334135932,1722791448293,-500.0,0.00013972,2]
[334135934,1722791448303,-618.41941887,0.00013972,2]
[334135936,1722791448313,-500.0,0.00013972,2]
[334135938,1722791448323,-500.0,0.00013972,2]
[334135941,1722791448333,-502.27037099,0.00013972,2]
[334135944,1722791448343,-152.133188,0.00013972,2]
[334135946,1722791448353,-500.0,0.00013972,2]
[334135948,1722791448363,-500.0,0.00013972,2]
[334135950,1722791448373,-500.0,0.00013972,2]
[334135952,1722791448384,-500.0,0.00013972,2]
[334135954,1722791448394,-500.0,0.00013972,2]
[334135956,1722791448404,-531.95,0.00013972,2]
[334135958,1722791448415,-500.0,0.00013972,2]
[334135961,1722791448425,-504.56144941,0.00013972,2]
[334135962,1722791448434,-500.0,0.00013972,2]
[334135965,1722791448446,-500.0,0.00013972,2]
[334135967,1722791448456,-502.59190367,0.00013972,2]
[334135968,1722791448466,-500.0,0.00013972,2]
[334135971,1722791448479,-500.0,0.00013972,2]
[334135973,1722791448490,-500.0,0.00013972,2]
[334135975,1722791448500,-500.0,0.00013972,2]
[334135977,1722791448510,-500.0,0.00013972,2]
[334135978,1722791448521,-500.0,0.00013972,2]
[334135980,1722791448531,-500.0,0.00013972,2]
[334135982,1722791448541,-500.0,0.00013972,2]
[334135984,1722791448551,-500.0,0.00013972,2]
[334135986,1722791448560,-500.0,0.00013972,2]
[334135988,1722791448571,-500.0,0.00013972,2]
[334135990,1722791448581,-500.0,0.00013972,2]
[334135993,1722791448591,-500.0,0.00013972,2]
[334135996,1722791448601,-611.53442492,0.00013972,2]
[334135999,1722791448612,-500.0,0.00013972,2]
[334136002,1722791448621,-500.0,0.00013972,2]
[334136004,1722791448631,-227.3742811,0.00013972,2]
[334136006,1722791448640,-186.61345224,0.00013972,2]
[334136008,1722791448650,-500.0,0.00013972,2]
[334136010,1722791448660,-500.0,0.00013972,2]
[334136013,1722791448670,-500.0,0.00013972,2]
[334136015,1722791448683,-500.0,0.00013972,2]
[334136017,1722791448692,-500.0,0.00013972,2]
[334136019,1722791448702,-447.64376257,0.00013972,2]
[334136021,1722791448712,-500.0,0.00013972,2]
[334136023,1722791448722,-339.22469103,0.00013972,2]
[334136041,1722791448873,-160.77530897,0.00013972,2]
[334136043,1722791448883,-188.75671503,0.00013972,2]
[334136045,1722791448896,-311.24328497,0.00013972,2]
[334136047,1722791448906,-500.0,0.00013972,2]
[334136049,1722791448916,-500.0,0.00013972,2]
[334136051,1722791448927,-173.96697217,0.00013972,2]
[334136053,1722791448938,-614.62448,0.00013972,2]
[334136055,1722791448948,-614.62448,0.00013972,2]
[334136058,1722791448959,-500.0,0.00013972,2]
[334136060,1722791448969,-500.0,0.00013972,2]
[334136061,1722791448978,-151.0,0.00013972,2]
[334136063,1722791448990,-500.0,0.00013972,2]
[334136065,1722791449001,-500.0,0.00013972,2]
[334136068,1722791449014,-500.0,0.00013972,2]
[334136069,1722791449033,-500.0,0.00013972,2]
[334136071,1722791449042,-500.0,0.00013972,2]
[334136073,1722791449052,-500.0,0.00013972,2]
[334136075,1722791449062,-664.57,0.00013972,2]
[334136077,1722791449076,-151.0,0.00013972,2]
[334136080,1722791449091,-500.0,0.00013972,2]
[334136082,1722791449102,-500.0,0.00013972,2]
[334136084,1722791449115,-500.0,0.00013972,2]
[334136086,1722791449125,-500.0,0.00013972,2]
[334136088,1722791449135,-219.26218121,0.00013972,2]
[334136090,1722791449145,-500.0,0.00013972,2]
[334136092,1722791449155,-500.0,0.00013972,2]
[334136094,1722791449167,-500.0,0.00013972,2]
[334136096,1722791449177,-500.0,0.00013972,2]
[334136098,1722791449187,-500.0,0.00013972,2]
[334136100,1722791449197,-506.94098192,0.00013972,2]
[334136102,1722791449206,-465.43801199,0.00013972,2]
[334136104,1722791449216,-280.33688286,0.00013972,2]
[334136106,1722791449227,-500.0,0.00013972,2]
[334136108,1722791449237,-151.0,0.00013972,2]
[334136110,1722791449246,-500.0,0.00013972,2]
[334136112,1722791449256,-500.0,0.00013972,2]
[334136114,1722791449267,-500.0,0.00013972,2]
[334136115,1722791449276,-583.0711377,0.00013972,2]
[334136117,1722791449286,-500.0,0.00013972,2]
[334136119,1722791449296,-500.0,0.00013972,2]
[334136121,1722791449306,-500.0,0.00013972,2]
[334136123,1722791449316,-500.0,0.00013972,2]
[334136125,1722791449326,-500.0,0.00013972,2]
[334136127,1722791449336,-500.0,0.00013972,2]
[334136130,1722791449346,-500.0,0.00013972,2]
[334136131,1722791449355,-501.04584901,0.00013972,2]
[334136133,1722791449365,-1284.24,0.00013972,2]
[334136136,1722791449376,-500.0,0.00013972,2]
[334136137,1722791449385,-500.0,0.00013972,2]
[334136139,1722791449396,-500.0,0.00013972,2]
[334136142,1722791449407,-500.0,0.00013972,2]
[334136144,1722791449417,-500.0,0.00013972,2]
[334136146,1722791449428,-500.0,0.00013972,2]
[334136148,1722791449438,-500.0,0.00013972,2]
[334136150,1722791449448,-500.0,0.00013972,2]
[334136161,1722791449548,-500.0,0.00013972,2]
[334136163,1722791449558,-520.37,0.00013972,2]
[334136165,1722791449570,-500.0,0.00013972,2]
[334136167,1722791449581,-500.0,0.00013972,2]
[334136169,1722791449590,-500.0,0.00013972,2]
[334136171,1722791449600,-151.0,0.00013972,2]
[334136173,1722791449609,-151.0,0.00013972,2]
[334136175,1722791449622,-263.22377956,0.00013972,2]
[334136177,1722791449632,-500.0,0.00013972,2]
[334136179,1722791449642,-307.89952846,0.00013972,2]
[334136181,1722791449652,-500.0,0.00013972,2]
[334136183,1722791449662,-500.0,0.00013972,2]
[334136185,1722791449671,-947.72,0.00013972,2]
[334136187,1722791449681,-750.4,0.00013972,2]
[334136189,1722791449692,-500.0,0.00013972,2]
[334136191,1722791449702,-217.201773,0.00013972,2]
[334136193,1722791449712,-217.201773,0.00013972,2]
[334136195,1722791449721,-500.0,0.00013972,2]
[334136197,1722791449731,-217.201773,0.00013972,2]
[334136199,1722791449741,-217.201773,0.00013972,2]
[334136201,1722791449750,-131.12954392,0.00013972,2]
[334136203,1722791449765,-196.14988999,0.00013972,2]
[334136205,1722791449775,-500.0,0.00013972,2]
[334136208,1722791449786,-500.0,0.00013972,2]
[334136211,1722791449796,-500.0,0.00013972,2]
[334136214,1722791449806,-574.99927375,0.00013972,2]
[334136217,1722791449816,-500.0,0.00013972,2]
[334136220,1722791449827,-500.0,0.00013972,2]
[334136223,1722791449836,-500.0,0.00013972,2]
[334136226,1722791449847,-500.0,0.00013972,2]
[334136229,1722791449856,-1129.9,0.00013972,2]
[334136232,1722791449866,-500.0,0.00013972,2]
[334136234,1722791449876,-228.61360341,0.00013972,2]
[334136279,1722791450327,155.22633478,9.999e-05,2]
[334136289,1722791450430,-382.12400374,0.00013587,2]
[334136290,1722791450440,-867.38639659,0.00013972,2]
[334136291,1722791450450,-151.0,0.00013972,2]
[334136292,1722791450460,-151.0,0.00013972,2]
[334136293,1722791450469,-579.28,0.00013972,2]
[334136294,1722791450479,-505.72,0.00013972,2]
[334136295,1722791450488,-500.0,0.00013972,2]
[334136297,1722791450497,-3441.48588539,0.00013972,2]
[334136345,1722791450954,506.48190828,9.999e-05,2]
[334138286,1722791477187,168.43411861,9.999e-05,2]
[334138345,1722791525681,214.0355564,9.999e-05,2]
[334138361,1722791682972,1402.26006671,0.00025,120]
[334138364,1722791796986,150.74373565,0.00027,120]
[334138365,1722791825334,602.9749426,0.00027,120]
[334138375,1722792431365,-195.83351449,9.899e-05,2]
[334138376,1722792431389,-506.48190828,9.999e-05,2]
[334138377,1722792431420,-319.72766707,9.999e-05,2]
[334138378,1722792431442,-200.6439536,0.00010871,2]
[334138379,1722792431467,-2581.5849162,0.00011085,2]
[334138380,1722792431491,-164.508301,0.00011548,2]
[334138381,1722792431515,-164.508301,0.00011608,2]
[334138382,1722792431540,-164.508301,0.00011668,2]
[334138383,1722792431563,-164.508301,0.00011728,2]
[334138384,1722792431586,-164.508301,0.00011789,2]
[334138385,1722792431609,-164.508301,0.00011849,2]
[334138386,1722792431633,-164.508301,0.00011909,2]
[334138387,1722792431656,-164.508301,0.00011969,2]
[334138388,1722792431687,-164.508301,0.00012029,2]
[334138389,1722792431710,-164.508301,0.00012089,2]
[334138390,1722792431731,-189.36023427,0.00012119,2]
[334138391,1722792431755,-164.508301,0.0001215,2]
[334138392,1722792431777,-227.20043836,0.00012369,2]
[334138401,1722792563774,-273.37336231,9.9e-05,2]
[334138402,1722792563797,-319.72766707,9.999e-05,2]
[334138403,1722792563821,-506.48190828,9.999e-05,2]
[334138404,1722792563854,-506.48190828,9.999e-05,2]
[334138405,1722792571866,273.37336231,9.9e-05,2]
[334138406,1722792573119,-300.0,0.0001126,2]
[334138407,1722792573141,-24900.0,0.00011261,2]
[334138408,1722792573164,-36172.1260987,0.00012359,2]
[334138409,1722792573185,-249.64972,0.00012369,10]
[334138410,1722792573207,-13764.66086231,0.00012369,2]
[334138411,1722792573229,-3785.86407866,0.00012369,2]
[334138412,1722792573250,-309.3349299,0.00012369,2]
[334138413,1722792573271,-3033.88648179,0.00012369,2]
[334138414,1722792573292,-4711.98211783,0.00012369,2]
[334138415,1722792573315,-154.95256393,0.00012369,2]
[334138416,1722792573335,-218.32720111,0.00012369,2]
[334138417,1722792573360,-404.75983068,0.00012369,2]
[334138418,1722792573382,-23152.2632017,0.00012369,2]
[334138419,1722792579645,273.37336231,9.9e-05,2]
[334138431,1722792584815,154.81968111,9.999e-05,2]
[334138432,1722792587681,273.37336231,9.9e-05,2]
[334138433,1722792596225,273.37336231,9.9e-05,2]
[334138434,1722792605047,273.37336231,9.9e-05,2]
[334138435,1722792612888,273.37336231,9.9e-05,2]
[334138436,1722792620943,273.37336231,9.9e-05,2]
[334138437,1722792628907,273.37336231,9.9e-05,2]
[334138477,1722792633962,-432.19419633,0.00012269,2]
[334138478,1722792633972,-300.0,0.00012368,2]
[334138479,1722792633982,-300.0,0.00012368,2]
[334138480,1722792633992,-7689.34826609,0.00012369,2]
[334138481,1722792634003,-850.38522801,0.00012369,2]
[334138482,1722792634015,-1081.46613896,0.00012369,2]
[334138483,1722792634027,-1048.73548556,0.00012369,2]
[334138484,1722792634039,-680.57379999,0.00012369,2]
[334138485,1722792634054,-3491.9681964,0.00012369,2]
[334138486,1722792634066,-4337.21955596,0.00012369,2]
[334138487,1722792634077,-1492.02183617,0.00012369,2]
[334138488,1722792634089,-632.68231449,0.00012369,2]
[334138489,1722792634101,-323.55125242,0.00012369,2]
[334138504,1722792634829,1492.87392022,9.9e-05,2]
[334138505,1722792634876,78.72732074,9.9e-05,2]
[334138561,1722792641274,-546.74672462,9.801e-05,2]
[334138562,1722792641288,-4315.77719393,9.9e-05,2]
[334138563,1722792641301,-45697.51915539,0.00012369,2]
[334138564,1722792641314,-1880.67694903,0.00012369,2]
[334138565,1722792641329,-597.94339649,0.00012369,2]
[334138566,1722792641341,-4513.55657017,0.000125,2]
[334138567,1722792641352,-250.0,0.00012508,2]
[334138568,1722792641363,-36172.1260987,0.00012533,2]
[334138569,1722792641374,-250.0,0.00012543,2]
[334138570,1722792641384,-250.0,0.00012577,2]
[334138571,1722792641393,-432.19419633,0.00012601,2]
[334138572,1722792641403,-250.0,0.00012611,2]
[334138573,1722792641560,-250.0,0.00012646,2]
[334138574,1722792641578,-250.0,0.0001268,2]
[334138575,1722792641588,-250.0,0.00012714,2]
[334138576,1722792641597,-250.0,0.00012749,2]
[334138577,1722792641607,-250.0,0.00012783,2]
[334138578,1722792641616,-250.0,0.00012817,2]
[334138579,1722792641625,-250.0,0.00012851,2]
[334138580,1722792641634,-250.0,0.00012886,2]
[334138581,1722792641643,-250.0,0.0001292,2]
[334138582,1722792641654,-432.19419633,0.00012934,2]
[334138583,1722792641663,-250.0,0.00012954,2]
[334138584,1722792641672,-250.0,0.00012989,2]
[334138585,1722792641681,-9677.18007245,0.0001299,2]
[334138586,1722792641691,-250.0,0.00013023,2]
[334138587,1722792641704,-250.0,0.00013057,2]
[334138588,1722792641715,-250.0,0.00013092,2]
[334138589,1722792641726,-250.0,0.00013126,2]
[334138590,1722792641736,-250.0,0.0001316,2]
[334138591,1722792641747,-432.19419633,0.00013266,2]
[334138592,1722792641758,-294.2310959,0.000133,2]
[334138593,1722792641768,-420.0,0.00013572,2]
[334138594,1722792641778,-635.53510405,0.00013594,2]
[334138595,1722792641788,-4645.44221586,0.00013597,2]
[334138596,1722792641801,-432.19419633,0.00013598,2]
[334138597,1722792641811,-420.0,0.00013605,2]
[334138598,1722792641820,-18608.32766161,0.00013688,2]
[334138599,1722792641830,-108516.378296,0.00013688,2]
[334138600,1722792641839,-181.87307721,0.00013695,2]
[334138601,1722792641855,-1022.03692279,0.00013695,2]
[334138602,1722792641865,-1203.91,0.00013697,2]
[334138603,1722792641874,-1203.91,0.00013697,2]
[334138604,1722792641884,-508.05368696,0.00013698,5]
[334138605,1722792641896,-2303.93030489,0.00013698,5]
[334138606,1722792641908,-555.48156606,0.00013698,5]
[334138607,1722792641919,-5833.08763614,0.00013698,5]
[334138662,1722792643570,-11482.89127672,0.00013698,5]
[334138663,1722792643582,-2697.02520016,0.00013698,5]
[334138664,1722792643593,-212.97479984,0.00013698,2]
[334138665,1722792643607,-287.02520016,0.00013698,2]
[334138666,1722792643618,-500.0,0.00013698,2]
[334138667,1722792643628,-509.958527,0.00013698,2]
[334138668,1722792643637,-500.0,0.00013698,2]
[334138669,1722792643647,-500.0,0.00013698,2]
[334138670,1722792643658,-500.0,0.00013698,2]
[334138671,1722792643667,-500.0,0.00013698,2]
[334138672,1722792643677,-500.0,0.00013698,2]
[334138673,1722792643686,-500.0,0.00013698,2]
[334138674,1722792643696,-500.0,0.00013698,2]
[334138675,1722792643705,-500.0,0.00013698,2]
[334138676,1722792643714,-454.98603466,0.00013698,2]
[334138677,1722792643724,-501.82770211,0.00013698,2]
[334138678,1722792643733,-500.27855431,0.00013698,2]
[334138679,1722792643743,-500.0,0.00013698,2]
[334138680,1722792643753,-523.31789803,0.00013698,2]
[334138681,1722792643762,-433.60608393,0.00013698,2]
[334138682,1722792643774,-66.39391607,0.00013698,2]
[334138683,1722792643783,-374.90607282,0.00013698,2]
[334138684,1722792643795,-125.09392718,0.00013698,2]
[334138685,1722792643807,-500.0,0.00013698,2]
[334138686,1722792643817,-500.0,0.00013698,2]
[334138687,1722792643826,-71.78607282,0.00013698,2]
[334138688,1722792643932,-425.94187448,0.00013698,2]
[334138691,1722792643943,-502.54136392,0.00013698,2]
[334138694,1722792643955,-515.92320383,0.00013698,2]
[334138695,1722792643965,-500.0,0.00013698,2]
[334138696,1722792643975,-498.12535384,0.00013698,2]
[334138698,1722792643985,-296.64636472,0.00013698,2]
[334138699,1722792643995,-500.0,0.00013698,2]
[334138700,1722792644004,-500.0,0.00013698,2]
[334138701,1722792644014,-500.0,0.00013698,2]
[334138702,1722792644025,-500.0,0.00013698,2]
[334138703,1722792644036,-500.0,0.00013698,2]
[334138704,1722792644045,-360.65944238,0.00013698,2]
[334138705,1722792644058,-181.968735,0.00013698,2]
[334138706,1722792644067,-416.09736969,0.00013698,2]
[334138736,1722792647725,-506.48190828,9.999e-05,2]
[334138737,1722792647735,-248.19,0.00010959,2]
[334138738,1722792647746,-83.90263031,0.00013698,2]
[334138740,1722792647755,-500.0,0.00013698,2]
[334138742,1722792647767,-500.0,0.00013698,2]
[334138744,1722792647777,-514.99178613,0.00013698,2]
[334138746,1722792647786,-500.0,0.00013698,2]
[334138748,1722792647795,-500.0,0.00013698,2]
[334138750,1722792647809,-500.0,0.00013698,2]
[334138753,1722792647820,-500.0,0.00013698,2]
[334138756,1722792647830,-500.0,0.00013698,2]
[334138758,1722792647842,-500.0,0.00013698,2]
[334138761,1722792647853,-500.0,0.00013698,2]
[334138764,1722792647864,-347.36219813,0.00013698,2]
[334138767,1722792647876,-500.0,0.00013698,2]
[334138771,1722792647887,-500.0,0.00013698,2]
[334138774,1722792647898,-500.0,0.00013698,2]
[334138777,1722792647909,-503.70317355,0.00013698,2]
[334138779,1722792647920,-500.0,0.00013698,2]
[334138780,1722792647929,-503.28484902,0.00013698,2]
[334138781,1722792647939,-531.14230046,0.00013698,2]
[334138782,1722792647948,-500.0,0.00013698,2]
[334138784,1722792647957,-500.0,0.00013698,2]
[334138786,1722792647966,-500.0,0.00013698,2]
[334138788,1722792647975,-500.0,0.00013698,2]
[334138789,1722792647984,-500.0,0.00013698,2]
[334138791,1722792647993,-500.0,0.00013698,2]
[334138793,1722792648003,-500.0,0.00013698,2]
[334138795,1722792648012,-500.0,0.00013698,2]
[334138796,1722792648021,-500.0,0.00013698,2]
[334138797,1722792648031,-501.81596992,0.00013698,2]
[334138798,1722792648039,-500.0,0.00013698,2]
[334138799,1722792648049,-500.0,0.00013698,2]
[334138800,1722792648061,-500.0,0.00013698,2]
[334138801,1722792648072,-500.0,0.00013698,2]
[334138802,1722792648083,-500.0,0.00013698,2]
[334138803,1722792648092,-500.0,0.00013698,2]
[334138804,1722792648103,-500.0,0.00013698,2]
[334138805,1722792648114,-501.04584901,0.00013698,2]
[334138806,1722792648124,-500.0,0.00013698,2]
[334138807,1722792648134,-500.0,0.00013698,2]
[334138808,1722792648143,-500.0,0.00013698,2]
[334138809,1722792648154,-500.0,0.00013698,2]
[334138810,1722792648165,-500.0,0.00013698,2]
[334138811,1722792648175,-500.0,0.00013698,2]
[334138812,1722792648184,-500.0,0.00013698,2]
[334138813,1722792648193,-500.0,0.00013698,2]
[334138814,1722792648203,-500.0,0.00013698,2]
[334138815,1722792648213,-500.0,0.00013698,2]
[334138816,1722792648223,-500.0,0.00013698,2]
[334138817,1722792648232,-500.0,0.00013698,2]
[334138818,1722792648243,-500.0,0.00013698,2]
[334138819,1722792648253,-500.0,0.00013698,2]
[334138820,1722792648263,-500.0,0.00013698,2]
[334138821,1722792648273,-500.0,0.00013698,2]
[334138822,1722792648283,-500.0,0.00013698,2]
[334138823,1722792648292,-500.0,0.00013698,2]
[334138824,1722792648302,-500.0,0.00013698,2]
[334138825,1722792648316,-500.0,0.00013698,2]
[334138826,1722792648330,-500.0,0.00013698,2]
[334138827,1722792648339,-500.0,0.00013698,2]
[334138828,1722792648349,-500.0,0.00013698,2]
[334138829,1722792648359,-594.58462071,0.00013698,2]
[334138830,1722792648368,-500.0,0.00013698,2]
[334138831,1722792648379,-500.0,0.00013698,2]
[334138832,1722792648388,-500.0,0.00013698,2]
[334138833,1722792648397,-500.0,0.00013698,2]
[334138834,1722792648407,-500.0,0.00013698,2]
[334138835,1722792648417,-504.0877914,0.00013698,2]
[334138836,1722792648426,-500.0,0.00013698,2]
[334138837,1722792648436,-500.0,0.00013698,2]
[334138838,1722792648445,-500.0,0.00013698,2]
[334138839,1722792648454,-500.0,0.00013698,2]
[334138840,1722792648464,-500.0,0.00013698,2]
[334138841,1722792648473,-500.0,0.00013698,2]
[334138842,1722792648483,-500.0,0.00013698,2]
[334138843,1722792648493,-500.0,0.00013698,2]
[334138844,1722792648503,-500.0,0.00013698,2]
[334138845,1722792648512,-500.0,0.00013698,2]
[334138846,1722792648522,-505.57522584,0.00013698,2]
[334138847,1722792648531,-500.0,0.00013698,2]
[334138848,1722792648541,-500.0,0.00013698,2]
[334138849,1722792648550,-500.0,0.00013698,2]
[334138850,1722792648566,-500.0,0.00013698,2]
[334138851,1722792648679,-500.0,0.00013698,2]
[334138852,1722792648688,-534.14,0.00013698,2]
[334138853,1722792648698,-500.0,0.00013698,2]
[334138854,1722792648707,-500.0,0.00013698,2]
[334138855,1722792648717,-500.0,0.00013698,2]
[334138856,1722792648727,-500.0,0.00013698,2]
[334138857,1722792648736,-710.88,0.00013698,2]
[334138858,1722792648746,-500.0,0.00013698,2]
[334138859,1722792648756,-500.0,0.00013698,2]
[334138860,1722792648765,-500.0,0.00013698,2]
[334138861,1722792648776,-500.0,0.00013698,2]
[334138862,1722792648787,-500.0,0.00013698,2]
[334138863,1722792648797,-505.97119188,0.00013698,2]
[334138864,1722792648810,-500.0,0.00013698,2]
[334138865,1722792648819,-500.0,0.00013698,2]
[334138866,1722792648828,-500.29903287,0.00013698,2]
[334138867,1722792648838,-500.0,0.00013698,2]
[334138868,1722792648847,-500.0,0.00013698,2]
[334138869,1722792648856,-500.0,0.00013698,2]
[334138870,1722792648867,-500.0,0.00013698,2]
[334138871,1722792648878,-500.0,0.00013698,2]
[334138872,1722792648888,-500.0,0.00013698,2]
[334138873,1722792648898,-500.0,0.00013698,2]
[334138874,1722792648910,-500.0,0.00013698,2]
[334138875,1722792648920,-1230.73,0.00013698,2]
[334138876,1722792648929,-500.0,0.00013698,2]
[334138877,1722792648939,-500.0,0.00013698,2]
[334138878,1722792648949,-500.0,0.00013698,2]
[334138879,1722792648958,-263.22377956,0.00013698,2]
[334138880,1722792648968,-500.0,0.00013698,2]
[334138881,1722792648979,-506.94553374,0.00013698,2]
[334138882,1722792648988,-500.0,0.00013698,2]
[334138883,1722792648998,-386.64215919,0.00013698,2]
[334138896,1722793661589,256.9383262,8.743e-05,2]
[334138900,1722793720485,3608.62140677,8.743e-05,2]
[334138912,1722793741178,616.48837097,8.743e-05,2]
[334138913,1722793752756,2106.31551891,8.743e-05,2]
[334138914,1722793768028,4712.76356463,8.743e-05,2]
[334138915,1722793772931,1492.87392022,8.743e-05,2]
[334138916,1722793773823,3602.20739431,8.743e-05,2]
[334138917,1722793779793,16288.37255921,8.743e-05,2]
[334138922,1722793794067,3785.86407866,8.743e-05,2]
[334138923,1722793799176,404.75983068,8.743e-05,2]
[334138924,1722793799217,19465.01870701,8.743e-05,2]
[334138926,1722793821656,3608.62140677,8.743e-05,2]
[334138995,1722793834779,-1431.98993635,9.275e-05,2]
[334138996,1722793834816,-2897.475,9.275e-05,2]
[334138998,1722793834862,-671.528,9.275e-05,2]
[334139000,1722793834909,-9354.23071462,9.275e-05,2]
[334139002,1722793834923,-1615.41536084,9.275e-05,2]
[334139004,1722793834937,-1586.25528079,9.275e-05,2]
[334139006,1722793834947,-600.0,9.375e-05,2]
[334139008,1722793834958,-300.0,9.47e-05,2]
[334139010,1722793834968,-300.0,9.47e-05,2]
[334139011,1722793834977,-111.8434839,9.471e-05,2]
[334139013,1722793834989,-1324.65,9.471e-05,2]
[334139016,1722793835013,-1716.52419962,9.471e-05,2]
[334139017,1722793835024,-2000.0,9.471e-05,2]